bitfinex-derivatives/quotes_SOLF0:USTF0_20250626
["timestamp","ask_amount","ask_price","bid_price","bid_amount"]
[1750957742055,7.0095,142.62,142.6,4.50029925]
[1750957742257,4.50029925,142.67,142.59,4.50029925]
[1750957742868,4.50029925,142.67,142.59,11.51089925]
[1750957743967,7.0099,142.61,142.59,7.0106]
[1750957744166,4.50029925,142.67,142.59,4.50029925]
[1750957744371,7.2794,142.68,142.61,4.50029925]
[1750957744563,7.2794,142.68,142.61,11.50999925]
[1750957745164,7.0086,142.64,142.61,11.50999925]
[1750957746767,7.0086,142.64,142.61,4.50029925]
[1750957747171,7.0086,142.64,142.61,11.50959925]
[1750957747370,7.008,142.65,142.61,4.50029925]
[1750957747872,7.008,142.65,142.62,7.0089]
[1750957748571,7.0083,142.64,142.61,11.50969925]
[1750957748773,7.0083,142.64,142.61,4.50029925]
[1750957749268,7.0083,142.64,142.62,7.009]
[1750957752978,7.008,142.65,142.62,7.009]
[1750957753175,2.49,142.68,142.63,4.50029925]
[1750957753678,36.56,142.69,142.63,4.50029925]
[1750957753679,7.007,142.67,142.63,4.50029925]
[1750957753877,7.007,142.67,142.65,7.0076]
[1750957754582,43.36519925,142.72,142.65,4.50029925]
[1750957755584,7.0071,142.67,142.65,4.50029925]
[1750957756086,7.0071,142.67,142.65,11.50799925]
[1750957756583,4.50029925,142.71,142.65,4.50029925]
[1750957758377,7.0072,142.66,142.65,4.50029925]
[1750957758985,4.50029925,142.71,142.65,11.50789925]
[1750957759290,2.5049,142.72,142.67,4.50029925]
[1750957759786,7.0055,142.7,142.67,11.50679925]
[1750957761385,7.006,142.69,142.67,11.50679925]
[1750957762381,7.0055,142.7,142.67,11.50679925]
[1750957763487,7.0055,142.7,142.67,11.50679925]
[1750957763877,7.0066,142.68,142.66,36.36]
[1750957764077,2.5049,142.72,142.66,36.36]
[1750957764380,7.0061,142.69,142.66,43.367]
[1750957764882,7.0063,142.68,142.66,43.367]
[1750957768793,7.0067,142.67,142.66,36.36]
[1750957770384,7.0082,142.64,142.62,4.50029925]
[1750957770586,7.0082,142.64,142.62,40.56029925]
[1750957771095,7.0079,142.65,142.62,47.56939925]
[1750957771285,7.0079,142.65,142.62,40.56029925]
[1750957772593,7.0079,142.65,142.63,7.0086]
[1750957773798,7.0079,142.65,142.62,47.56929925]
[1750957774898,7.0079,142.65,142.63,7.0087]
[1750957776600,7.0075,142.66,142.63,7.0086]
[1750957777297,7.007,142.67,142.62,40.56029925]
[1750957777898,40.56029925,142.7,142.64,7.0078]
[1750957778099,40.56029925,142.7,142.62,40.56029925]
[1750957778402,7.007,142.67,142.65,7.0077]
[1750957778587,40.56029925,142.7,142.62,40.56029925]
[1750957779290,40.56029925,142.7,142.63,7.0085]
[1750957779685,7.0079,142.65,142.62,47.56919925]
[1750957780096,7.0079,142.65,142.62,40.56029925]
[1750957780397,7.0079,142.65,142.63,7.0086]
[1750957782688,7.0079,142.65,142.62,40.56029925]
[1750957782689,7.0079,142.65,142.62,47.56929925]
[1750957783993,7.0083,142.64,142.62,36.06]
[1750957784205,2.4665,142.67,142.62,36.06]
[1750957784391,2.4665,142.67,142.6,4.50029925]
[1750957784693,7.0081,142.65,142.6,4.50029925]
[1750957785197,7.0081,142.65,142.62,4.50029925]
[1750957785797,7.0081,142.65,142.63,7.0087]
[1750957787195,7.0082,142.64,142.62,11.50929925]
[1750957787900,7.008,142.65,142.63,7.0087]
[1750957790600,7.0075,142.66,142.64,7.0082]
[1750957791407,7.0069,142.67,142.65,7.0077]
[1750957791702,40.56029925,142.7,142.63,36.06]
[1750957792008,7.008,142.65,142.63,43.0685]
[1750957792692,7.0075,142.66,142.64,7.0082]
[1750957793295,40.56029925,142.7,142.64,7.0082]
[1750957793703,7.0072,142.67,142.64,7.0082]
[1750957793997,40.56029925,142.7,142.64,7.0082]
[1750957795403,7.0072,142.67,142.64,7.0082]
[1750957797301,7.0073,142.66,142.64,7.0082]
[1750957797805,7.0071,142.67,142.64,7.0082]
[1750957798006,40.56029925,142.7,142.64,7.0082]
[1750957799007,7.0072,142.67,142.64,7.0082]
[1750957799604,40.56029925,142.7,142.64,7.0082]
[1750957800005,6.65408372,142.71,142.63,40.55987839]
[1750957800210,4.49987839,142.7,142.63,36.06]
[1750957800506,8.65626211,142.7,142.63,36.06]
[1750957800709,7.0074,142.66,142.63,43.0685]
[1750957800909,4.49987839,142.68,142.63,36.06]
[1750957801406,4.15638372,142.7,142.63,40.55987839]
[1750957801605,6.66128372,142.72,142.67,4.49987839]
[1750957801801,7.0048,142.71,142.67,40.45987839]
[1750957802002,4.15638372,142.74,142.67,40.45722217]
[1750957802303,7.005,142.71,142.68,7.0062]
[1750957802506,4.15638372,142.74,142.67,40.45722217]
[1750957802806,7.0051,142.71,142.68,7.0062]
[1750957805409,7.0053,142.7,142.68,7.0062]
[1750957806306,4.49722217,142.73,142.67,35.96]
[1750957806707,7.0056,142.7,142.67,42.9666]
[1750957806908,4.49722217,142.73,142.67,42.9666]
[1750957808511,7.0058,142.69,142.67,42.9666]
[1750957809607,7.0058,142.69,142.67,35.96]
[1750957809808,7.0062,142.68,142.64,2.437]
[1750957810010,7.0062,142.68,142.64,35.96]
[1750957810211,7.0062,142.68,142.65,7.0074]
[1750957810404,4.49722217,142.69,142.64,35.96]
[1750957811513,7.007,142.67,142.64,42.968]
[1750957814823,7.0073,142.66,142.64,42.968]
[1750957815418,7.0069,142.67,142.64,42.968]
[1750957817315,4.49722217,142.69,142.64,42.968]
[1750957817817,7.0071,142.67,142.64,42.968]
[1750957818415,7.0071,142.67,142.61,35.96]
[1750957818416,4.49722217,142.67,142.61,35.96]
[1750957819119,40.45722217,142.67,142.61,35.96]
[1750957819308,7.009,142.63,142.61,35.96]
[1750957820118,35.96,142.67,142.61,35.96]
[1750957820319,35.96,142.7,142.62,4.49722217]
[1750957820520,40.26025098,142.7,142.62,6.87872217]
[1750957820726,7.007,142.67,142.64,7.0078]
[1750957823020,7.0065,142.68,142.64,4.49722217]
[1750957823228,40.26025098,142.7,142.64,4.49722217]
[1750957823926,7.0071,142.67,142.65,7.0076]
[1750957826828,35.96,142.7,142.64,4.49722217]
[1750957827428,7.0065,142.68,142.66,7.007]
[1750957828033,35.96,142.7,142.65,7.0074]
[1750957828532,7.0068,142.67,142.65,7.0074]
[1750957833939,35.96,142.7,142.65,7.0074]
[1750957834544,7.0069,142.67,142.65,7.0074]
[1750957835938,7.0072,142.66,142.64,47.44522217]
[1750957836139,35.96,142.7,142.64,40.43722217]
[1750957836641,7.007,142.67,142.65,7.0077]
[1750957837244,7.0077,142.65,142.62,2.3815]
[1750957837453,6.84202217,142.69,142.62,2.3815]
[1750957837745,7.0081,142.65,142.63,7.0084]
[1750957837947,6.84202217,142.69,142.61,49.12210256]
[1750957838543,7.008,142.65,142.62,7.0088]
[1750957838739,7.008,142.65,142.61,49.12210256]
[1750957839150,7.008,142.65,142.63,7.0087]
[1750957844955,7.0074,142.66,142.64,7.0082]
[1750957850954,6.84202217,142.69,142.63,42.9484]
[1750957851156,4.49722217,142.67,142.62,8.68488039]
[1750957851452,4.49722217,142.67,142.6,49.12210256]
[1750957852149,4.49722217,142.67,142.61,7.0095]
[1750957852751,6.84202217,142.69,142.62,4.49722217]
[1750957853055,35.96,142.7,142.64,4.49722217]
[1750957853259,4.30084708,142.69,142.64,40.43722217]
[1750957853557,7.0069,142.67,142.65,7.0074]
[1750957854457,7.0063,142.68,142.66,7.0068]
[1750957854847,4.872,142.72,142.64,40.43722217]
[1750957855050,7.006,142.69,142.66,11.50412217]
[1750957856150,7.0065,142.68,142.66,11.50412217]
[1750957856354,4.3019256,142.7,142.65,7.0074]
[1750957856562,4.872,142.72,142.65,7.0074]
[1750957856856,4.30174572,142.71,142.65,7.0074]
[1750957857053,4.30174572,142.7,142.65,7.0074]
[1750957857253,7.0071,142.67,142.64,40.43722217]
[1750957857662,7.0075,142.66,142.64,42.948]
[1750957857861,4.30162539,142.7,142.64,35.94]
[1750957858056,4.30162539,142.69,142.64,35.94]
[1750957858256,4.49722217,142.71,142.64,35.94]
[1750957858556,4.30165849,142.7,142.64,35.94]
[1750957858749,8.79888066,142.69,142.64,35.94]
[1750957858951,4.49722217,142.69,142.64,35.94]
[1750957859662,7.0077,142.65,142.64,35.94]
[1750957860862,7.0077,142.65,142.61,13.18210256]
[1750957861065,7.0077,142.65,142.61,49.08210256]
[1750957861255,7.0082,142.64,142.62,7.0089]
[1750957861763,2.4053,142.68,142.62,7.0089]
[1750957862163,2.4053,142.68,142.63,7.0086]
[1750957862362,7.008,142.65,142.63,7.0086]
[1750957862756,7.008,142.65,142.62,7.0089]
[1750957863564,7.008,142.65,142.63,7.0084]
[1750957863765,7.0083,142.64,142.61,49.08210256]
[1750957863958,7.0083,142.64,142.62,7.0089]
[1750957865467,4.872,142.72,142.63,4.49722217]
[1750957865663,4.872,142.72,142.67,4.49722217]
[1750957865964,7.0055,142.7,142.67,4.49722217]
[1750957866565,2.4697,142.72,142.67,4.49722217]
[1750957866762,2.4583,142.74,142.67,4.49722217]
[1750957867060,7.0045,142.72,142.67,4.49722217]
[1750957867262,2.4583,142.74,142.69,4.49722217]
[1750957867463,4.8824,142.76,142.71,4.49722217]
[1750957867656,7.0038,142.73,142.71,11.50172217]
[1750957868573,7.0038,142.73,142.71,4.49722217]
[1750957868874,7.0038,142.73,142.71,11.50202217]
[1750957869163,4.8824,142.76,142.71,4.49722217]
[1750957869373,2.5,142.76,142.71,4.49722217]
[1750957869558,2.5,142.76,142.71,11.50172217]
[1750957869960,2.5,142.76,142.72,7.0042]
[1750957870572,7.0031,142.75,142.72,7.0042]
[1750957871073,7.0031,142.75,142.73,7.0037]
[1750957871272,7.0034,142.74,142.71,4.49722217]
[1750957871473,2.5,142.76,142.71,4.49722217]
[1750957871871,7.0036,142.74,142.71,11.50172217]
[1750957872768,2.5,142.76,142.7,35.9]
[1750957872973,2.2925,142.75,142.7,35.9]
[1750957873870,2.2925,142.75,142.7,42.9052]
[1750957874277,6.78972217,142.75,142.7,35.9]
[1750957874477,9.11122217,142.75,142.67,40.39722217]
[1750957874671,35.9,142.74,142.67,40.39722217]
[1750957874870,4.49722217,142.71,142.65,4.49722217]
[1750957875072,4.49722217,142.71,142.64,35.9]
[1750957875480,7.0064,142.68,142.64,35.9]
[1750957875672,7.0064,142.68,142.64,40.39722217]
[1750957875876,7.0064,142.68,142.65,7.0075]
[1750957876074,7.006,142.69,142.64,40.39722217]
[1750957876480,7.006,142.69,142.66,7.0072]
[1750957876773,7.0055,142.7,142.64,40.39722217]
[1750957876976,7.0055,142.7,142.66,4.49722217]
[1750957877285,7.0055,142.7,142.67,7.0064]
[1750957877480,7.0058,142.69,142.67,7.0064]
[1750957879184,7.0058,142.69,142.66,11.50422217]
[1750957879483,7.0063,142.68,142.64,40.39722217]
[1750957879678,7.0063,142.68,142.65,7.0075]
[1750957879877,7.0068,142.67,142.65,7.0075]
[1750957880083,4.49722217,142.71,142.64,40.39722217]
[1750957880285,4.49722217,142.71,142.64,47.40512217]
[1750957880973,4.49722217,142.71,142.65,7.0074]
[1750957881379,7.0067,142.68,142.65,7.0074]
[1750957883179,4.49722217,142.71,142.64,4.49722217]
[1750957883384,7.0074,142.66,142.64,35.9]
[1750957884084,4.32744488,142.73,142.64,40.39722217]
[1750957884290,4.32744488,142.73,142.66,4.49722217]
[1750957884486,4.32744488,142.73,142.68,4.49722217]
[1750957884681,7.004,142.73,142.68,40.39722217]
[1750957885291,49.60494488,142.74,142.71,7.0044]
[1750957885488,42.60144488,142.74,142.68,40.39722217]
[1750957885881,7.0042,142.73,142.68,40.39722217]
[1750957886596,7.0042,142.73,142.7,7.0048]
[1750957887093,2.374,142.74,142.71,7.0045]
[1750957888489,4.614,142.75,142.68,40.39722217]
[1750957889288,7.0036,142.74,142.7,4.49722217]
[1750957889493,4.32744488,142.76,142.7,4.49722217]
[1750957889786,7.0029,142.75,142.73,7.0035]
[1750957890384,7.0025,142.76,142.74,7.0033]
[1750957891082,4.49722217,142.76,142.67,8.70251078]
[1750957891287,4.49722217,142.74,142.67,4.49722217]
[1750957891485,4.49722217,142.74,142.66,40.33722217]
[1750957891783,4.49722217,142.74,142.68,7.006]
[1750957892891,7.005,142.71,142.68,7.006]
[1750957894691,7.0053,142.7,142.68,7.006]
[1750957894888,7.0053,142.7,142.67,7.0065]
[1750957895093,4.49722217,142.72,142.66,35.84]
[1750957895280,4.49722217,142.7,142.66,35.84]
[1750957895886,4.49722217,142.7,142.66,42.8472]
[1750957896193,4.49722217,142.7,142.66,35.84]
[1750957896388,7.0065,142.68,142.66,35.84]
[1750957896583,4.49722217,142.7,142.66,42.8472]
[1750957896784,7.006,142.69,142.66,42.8472]
[1750957897293,6.91472217,142.72,142.66,35.84]
[1750957897694,6.91472217,142.72,142.67,7.0065]
[1750957898690,7.0055,142.7,142.67,7.0065]
[1750957899283,7.0055,142.7,142.68,7.0062]
[1750957899488,7.0049,142.71,142.68,7.0062]
[1750957899695,7.0049,142.71,142.66,35.84]
[1750957899894,7.0049,142.71,142.68,7.0059]
[1750957900092,7.0045,142.72,142.67,4.49722217]
[1750957900284,2.3445,142.75,142.67,4.49722217]
[1750957900489,2.3445,142.75,142.7,7.005]
[1750957900690,7.0043,142.73,142.7,7.005]
[1750957901195,2.3445,142.75,142.7,7.005]
[1750957901685,7.0041,142.73,142.7,7.005]
[1750957902500,2.3445,142.75,142.7,7.005]
[1750957902795,7.0042,142.73,142.7,7.005]
[1750957902996,7.0042,142.73,142.68,4.49722217]
[1750957903190,7.0042,142.73,142.7,4.49722217]
[1750957903387,38.1636,142.76,142.72,7.0043]
[1750957903596,11.1759051,142.78,142.7,40.33722217]
[1750957903992,7.0031,142.75,142.72,7.004]
[1750957904394,11.1759051,142.78,142.72,7.004]
[1750957904595,7.0031,142.75,142.72,7.004]
[1750957905200,4.33288293,142.78,142.74,4.49722217]
[1750957905398,4.33288293,142.8,142.74,40.33722217]
[1750957905701,6.88962217,142.81,142.74,40.33722217]
[1750957906400,7.0009,142.79,142.76,7.0019]
[1750957906594,6.88962217,142.81,142.76,7.0019]
[1750957906795,6.88962217,142.81,142.74,35.84]
[1750957907004,7.0021,142.77,142.74,42.8431]
[1750957907596,7.0025,142.76,142.74,35.84]
[1750957908104,7.0016,142.78,142.75,7.0028]
[1750957908606,7.0024,142.76,142.74,35.84]
[1750957909597,4.49722217,142.79,142.74,35.84]
[1750957909798,4.49722217,142.77,142.7,4.49722217]
[1750957910093,4.49722217,142.72,142.68,35.84]
[1750957910701,7.0051,142.71,142.68,42.846]
[1750957910904,40.33722217,142.74,142.68,35.84]
[1750957911298,7.0039,142.73,142.68,35.84]
[1750957912505,7.0039,142.73,142.7,7.005]
[1750957912905,7.0043,142.72,142.69,7.0055]
[1750957913907,7.0042,142.73,142.7,7.005]
[1750957914408,40.33722217,142.74,142.7,7.005]
[1750957914707,7.0042,142.73,142.7,7.005]
[1750957915706,35.84,142.74,142.68,35.84]
[1750957915906,2.2684,142.75,142.69,4.49722217]
[1750957916211,2.2684,142.75,142.71,7.0045]
[1750957916507,7.0036,142.74,142.71,7.0045]
[1750957916904,7.0036,142.74,142.72,7.0041]
[1750957917109,7.003,142.75,142.72,7.0041]
[1750957919311,7.0033,142.74,142.72,7.0041]
[1750957920713,7.0039,142.73,142.69,4.49722217]
[1750957920907,4.49722217,142.75,142.68,35.84]
[1750957921107,4.49722217,142.75,142.69,7.0055]
[1750957921822,7.0047,142.72,142.69,7.0055]
[1750957922415,7.0049,142.71,142.69,7.0055]
[1750957923206,8.85809892,142.75,142.68,35.84]
[1750957924014,7.0043,142.72,142.69,7.0055]
[1750957924216,8.85809892,142.75,142.69,7.0055]
[1750957924913,8.85809892,142.75,142.68,42.846]
[1750957925108,7.0053,142.7,142.68,35.84]
[1750957925319,4.49722217,142.73,142.68,35.84]
[1750957925721,7.0056,142.7,142.68,35.84]
[1750957925915,7.0056,142.7,142.67,7.0065]
[1750957926115,4.49722217,142.71,142.65,44.50251078]
[1750957926716,4.49722217,142.71,142.65,35.8]
[1750957926920,4.49722217,142.71,142.66,7.0069]
[1750957927317,4.49722217,142.71,142.65,35.8]
[1750957927516,7.0055,142.7,142.67,7.0064]
[1750957928319,7.006,142.69,142.66,7.007]
[1750957928520,44.65809892,142.73,142.66,7.007]
[1750957928719,4.49722217,142.71,142.65,35.8]
[1750957928919,7.0065,142.68,142.65,42.8075]
[1750957929117,2.2889,142.72,142.63,8.70251078]
[1750957929118,4.49722217,142.69,142.63,8.70251078]
[1750957929315,4.49722217,142.69,142.62,44.50251078]
[1750957929509,4.49722217,142.67,142.61,8.70251078]
[1750957929710,4.49722217,142.67,142.6,674.80251078]
[1750957930207,7.0087,142.64,142.61,7.0095]
[1750957930614,7.0089,142.63,142.6,673.1099]
[1750957930813,7.0089,142.63,142.6,666.1]
[1750957931929,7.0089,142.63,142.61,7.0096]
[1750957932222,7.0085,142.64,142.61,7.0096]
[1750957933016,2.3802,142.68,142.61,4.49722217]
[1750957933326,6.87742217,142.68,142.6,35.8]
[1750957933623,7.0085,142.64,142.61,7.0092]
[1750957933820,7.0085,142.64,142.6,40.29722217]
[1750957934224,7.0085,142.64,142.61,7.0096]
[1750957934420,7.0085,142.64,142.6,40.29722217]
[1750957934918,7.0085,142.64,142.61,7.0096]
[1750957935530,7.0085,142.64,142.62,7.0089]
[1750957935724,6.87742217,142.68,142.62,7.0089]
[1750957935929,7.008,142.65,142.62,7.0089]
[1750957936133,7.008,142.65,142.63,7.0086]
[1750957937232,7.0074,142.66,142.64,7.0082]
[1750957941633,4.49722217,142.66,142.6,35.8]
[1750957941933,35.82,142.65,142.57,17.79043295]
[1750957942138,7.0097,142.61,142.57,42.63912217]
[1750957942631,4.49722217,142.64,142.58,7.0109]
[1750957942838,7.0104,142.6,142.57,38.1419]
[1750957943128,4.49722217,142.62,142.56,8.70251078]
[1750957943333,4.49722217,142.6,142.55,8.70251078]
[1750957943727,7.0114,142.58,142.55,15.71511078]
[1750957944640,7.0114,142.58,142.55,7.0126]
[1750957946237,35.82,142.61,142.55,7.0126]
[1750957946439,35.82,142.61,142.54,35.82]
[1750957946440,4.49722217,142.6,142.54,35.82]
[1750957946741,4.49722217,142.6,142.53,4.49722217]
[1750957947033,4.49722217,142.6,142.55,7.0126]
[1750957948022,35.82,142.61,142.55,7.0126]
[1750957948228,35.82,142.61,142.55,4.49722217]
[1750957948425,35.82,142.61,142.57,4.49722217]
[1750957948630,2.2728,142.62,142.57,11.50852217]
[1750957948831,7.01,142.61,142.57,11.50852217]
[1750957950229,7.0103,142.6,142.57,11.50852217]
[1750957950429,2.2728,142.62,142.57,11.50852217]
[1750957950730,2.2728,142.62,142.58,7.0111]
[1750957951840,7.0098,142.61,142.58,7.0111]
[1750957952141,6.93942217,142.63,142.57,11.50862217]
[1750957952341,7.0108,142.59,142.57,4.49722217]
[1750957953533,7.0112,142.58,142.56,35.82]
[1750957953743,35.8,142.6,142.53,40.29722217]
[1750957954036,4.49722217,142.59,142.53,40.29722217]
[1750957954542,7.0124,142.56,142.53,40.29722217]
[1750957955136,7.0124,142.56,142.53,47.31052217]
[1750957955337,4.49722217,142.59,142.49,2.2624]
[1750957955538,4.49722217,142.53,142.44,35.8]
[1750957955746,40.29722217,142.53,142.45,4.49722217]
[1750957956043,7.0152,142.5,142.45,4.49722217]
[1750957956247,7.0152,142.5,142.46,7.0168]
[1750957956630,7.0157,142.49,142.46,7.0168]
[1750957958843,6.76656809,142.52,142.44,35.8]
[1750957959041,6.76656809,142.5,142.43,2.2708]
[1750957959242,35.8,142.49,142.43,2.2708]
[1750957959843,35.8,142.49,142.42,35.8]
[1750957960041,6.76656809,142.48,142.39,45.06416809]
[1750957960245,6.76656809,142.48,142.39,38.2976]
[1750957960445,6.76656809,142.46,142.37,42.56656809]
[1750957960648,35.8,142.45,142.37,42.56656809]
[1750957960847,35.8,142.45,142.4,7.0198]
[1750957961047,35.8,142.45,142.39,6.76656809]
[1750957961455,7.0184,142.44,142.39,6.76656809]
[1750957961646,35.8,142.45,142.39,6.76656809]
[1750957962147,42.8176,142.45,142.42,7.0187]
[1750957962345,35.8,142.45,142.42,7.0187]
[1750957963350,42.8176,142.45,142.42,7.0187]
[1750957963851,35.8,142.45,142.43,7.0185]
[1750957964752,42.8177,142.45,142.42,7.0188]
[1750957965142,35.8,142.45,142.43,7.0183]
[1750957965342,35.82,142.48,142.41,6.76656809]
[1750957965955,7.017,142.47,142.44,7.018]
[1750957967151,7.0172,142.46,142.43,7.0182]
[1750957967351,35.82,142.48,142.43,7.0182]
[1750957967659,35.82,142.48,142.41,6.76656809]
[1750957967853,7.0171,142.46,142.43,7.0183]
[1750957968052,35.82,142.48,142.41,6.76656809]
[1750957968251,35.82,142.48,142.41,42.58656809]
[1750957968558,35.82,142.48,142.43,7.0182]
[1750957969253,42.58656809,142.48,142.42,7.0189]
[1750957969562,42.58656809,142.48,142.41,35.82]
[1750957969752,42.58656809,142.48,142.41,42.8394]
[1750957969954,42.58656809,142.48,142.41,7.0194]
[1750957970162,6.76656809,142.46,142.38,6.76656809]
[1750957970359,6.76656809,142.46,142.4,7.0197]
[1750957970559,6.76656809,142.46,142.38,6.76656809]
[1750957970966,42.58656809,142.48,142.4,6.76656809]
[1750957971460,35.82,142.48,142.4,6.76656809]
[1750957971665,35.82,142.48,142.42,6.76656809]
[1750957971970,35.82,142.48,142.45,7.0173]
[1750957972168,35.82,142.48,142.42,42.58656809]
[1750957972367,35.82,142.48,142.42,35.82]
[1750957972556,35.82,142.48,142.42,42.8388]
[1750957972962,7.0176,142.45,142.42,35.82]
[1750957973267,7.0176,142.45,142.42,42.8388]
[1750957973970,7.0181,142.44,142.42,42.8388]
[1750957976178,7.0178,142.45,142.42,42.8388]
[1750957978269,4.51466221,142.47,142.4,4.51466221]
[1750957978568,4.51466221,142.47,142.39,35.82]
[1750957978877,7.0193,142.42,142.39,47.35486221]
[1750957979062,4.51466221,142.43,142.35,40.4373]
[1750957979260,4.51466221,142.43,142.35,44.95196221]
[1750957979873,7.0198,142.41,142.37,4.51466221]
[1750957980472,7.0198,142.41,142.36,6.77473738]
[1750957980669,35.82,142.44,142.38,6.77473738]
[1750957980867,4.631,142.46,142.41,7.0192]
[1750957981063,7.0189,142.43,142.4,6.77473738]
[1750957981269,7.0189,142.43,142.41,7.0194]
[1750957982473,4.631,142.46,142.4,7.0199]
[1750957982673,6.77473738,142.45,142.39,35.84]
[1750957982863,6.77473738,142.45,142.36,42.57473738]
[1750957983063,7.0198,142.41,142.36,42.57473738]
[1750957983775,11.40573738,142.46,142.36,42.57473738]
[1750957984675,7.0198,142.41,142.38,7.0207]
[1750957984877,11.40573738,142.46,142.38,7.0207]
[1750957985176,7.0199,142.41,142.39,7.0205]
[1750957985477,7.0199,142.41,142.36,35.8]
[1750957985674,11.40573738,142.46,142.36,42.57473738]
[1750957985976,11.40573738,142.46,142.38,7.0207]
[1750957986366,11.40573738,142.46,142.39,7.0205]
[1750957987279,7.0194,142.42,142.39,7.0205]
[1750957987675,4.631,142.46,142.36,42.57473738]
[1750957987876,7.0174,142.46,142.4,6.77473738]
[1750957988072,35.84,142.47,142.4,6.77473738]
[1750957988375,35.84,142.47,142.41,7.0193]
[1750957988576,7.0184,142.44,142.41,7.0193]
[1750957988778,6.77473738,142.46,142.37,35.8]
[1750957989276,2.4416,142.45,142.37,35.8]
[1750957989478,2.4416,142.45,142.39,7.0203]
[1750957990080,7.02,142.41,142.38,7.0207]
[1750957990280,35.8,142.43,142.37,35.8]
[1750957990677,7.0202,142.4,142.37,42.8211]
[1750957990877,7.0202,142.4,142.37,35.8]
[1750957991380,7.0202,142.4,142.38,7.0207]
[1750957991680,38.2083,142.43,142.38,7.0207]
[1750957991681,7.0198,142.41,142.38,7.0207]
[1750957991878,38.2083,142.43,142.36,6.77473738]
[1750957992383,7.0196,142.41,142.36,6.77473738]
[1750957992586,7.0196,142.41,142.38,7.0207]
[1750957993077,7.0201,142.4,142.38,7.0207]
[1750957995285,7.0201,142.4,142.32,8.61971571]
[1750957995286,42.60351534,142.39,142.32,8.61971571]
[1750957995584,6.78351534,142.33,142.24,2.3757]
[1750957995786,6.78351534,142.27,142.2,8.61971571]
[1750957995980,6.78351534,142.27,142.15,17.23943143]
[1750957995981,6.78351534,142.23,142.15,2.2788]
[1750957996284,6.78351534,142.29,142.12,6.78351534]
[1750957996285,6.78351534,142.21,142.12,6.78351534]
[1750957996480,35.82,142.21,142.14,6.78351534]
[1750957996679,35.82,142.21,142.16,6.78351534]
[1750957996875,35.82,142.24,142.16,6.78351534]
[1750957997081,7.0299,142.2,142.16,6.78351534]
[1750957997282,35.82,142.24,142.16,6.78351534]
[1750957997684,42.8482,142.24,142.18,7.0307]
[1750957997988,35.82,142.24,142.16,6.78351534]
[1750957998188,7.0287,142.23,142.16,6.78351534]
[1750957998392,35.82,142.24,142.16,6.78351534]
[1750957998588,42.8482,142.24,142.19,7.0301]
[1750957998788,42.8482,142.24,142.16,6.78351534]
[1750957999192,42.8482,142.24,142.19,7.0303]
[1750957999690,42.8482,142.24,142.2,7.0298]
[1750958000090,42.8482,142.24,142.16,6.78351534]
[1750958000588,35.82,142.24,142.16,6.78351534]
[1750958000794,35.82,142.24,142.2,7.0296]
[1750958000993,7.0276,142.25,142.16,6.78351534]
[1750958001190,7.0279,142.24,142.15,42.60351534]
[1750958002195,35.84,142.25,142.15,42.60351534]
[1750958003096,7.0285,142.23,142.15,42.60351534]
[1750958003388,35.84,142.25,142.15,35.82]
[1750958003389,6.78351534,142.24,142.15,35.82]
[1750958003696,7.0307,142.19,142.11,42.62351534]
[1750958004494,42.62351534,142.2,142.11,35.84]
[1750958005390,7.0307,142.19,142.11,35.84]
[1750958005890,7.0307,142.19,142.15,7.0323]
[1750958006086,7.0309,142.18,142.15,7.0323]
[1750958006594,7.0306,142.19,142.15,7.0323]
[1750958007395,7.0306,142.19,142.16,7.0318]
[1750958007989,7.0306,142.19,142.15,7.0322]
[1750958008296,7.0309,142.18,142.15,7.0322]
[1750958009992,7.0306,142.19,142.16,7.0319]